[Event "Rapid del Mercoledì"]
[Site "Chess.com"]
[Date "2020.06.10"]
[Round "1"]
[White "SanSecondoPR"]
[Black "crippo"]
[Result "0-1"]
[WhiteElo "1357"]
[BlackElo "1579"]
[TimeControl "720+3"]
[EndTime "12:03:42 PDT"]
[Termination "crippo ha vinto per scaccomatto"]

1. e4 {[%clk 0:12:00]} 1... e5 {[%clk 0:12:00.9]} 2. d4 {[%clk 0:12:00.7]} 2...
exd4 {[%clk 0:12:00.4]} 3. c3 {[%clk 0:12:01.7]} 3... d3 {[%clk 0:12:00.8]} 4.
Bxd3 {[%clk 0:12:01.2]} 4... Nc6 {[%clk 0:12:02.8]} 5. Nf3 {[%clk 0:12:01.5]}
5... Bc5 {[%clk 0:12:03.2]} 6. Be3 {[%clk 0:12:00.4]} 6... Bb6 {[%clk
0:12:03.7]} 7. O-O {[%clk 0:11:58.4]} 7... d6 {[%clk 0:12:05.6]} 8. Nbd2 {[%clk
0:11:55.6]} 8... Nf6 {[%clk 0:12:06.1]} 9. Re1 {[%clk 0:11:53.8]} 9... O-O
{[%clk 0:12:06.6]} 10. Qc2 {[%clk 0:11:51.4]} 10... Bg4 {[%clk 0:12:06.1]} 11.
Rad1 {[%clk 0:11:48.8]} 11... Ne5 {[%clk 0:12:05.7]} 12. Bg5 {[%clk 0:11:47.3]}
12... Bxf3 {[%clk 0:12:04.6]} 13. gxf3 {[%clk 0:11:37.6]} 13... h6 {[%clk
0:12:05.4]} 14. Bh4 {[%clk 0:11:37.4]} 14... Ng6 {[%clk 0:12:07.1]} 15. Bg3
{[%clk 0:11:36.7]} 15... Nh5 {[%clk 0:12:07.8]} 16. Kh1 {[%clk 0:11:28.5]} 16...
Nhf4 {[%clk 0:12:08.5]} 17. Bf1 {[%clk 0:11:22.9]} 17... h5 {[%clk 0:11:59.9]}
18. Bg2 {[%clk 0:10:58.4]} 18... h4 {[%clk 0:11:54.2]} 19. Bxf4 {[%clk 0:10:57]}
19... Nxf4 {[%clk 0:11:55.4]} 20. Rf1 {[%clk 0:10:48.8]} 20... h3 {[%clk
0:11:56.5]} 21. Nc4 {[%clk 0:10:31.8]} 21... hxg2+ {[%clk 0:11:57.5]} 22. Kg1
{[%clk 0:10:31.1]} 22... gxf1=Q+ {[%clk 0:11:58.2]} 23. Rxf1 {[%clk 0:10:30.3]}
23... Qg5+ {[%clk 0:11:58.4]} 24. Kh1 {[%clk 0:10:29.3]} 24... Qg2# {[%clk
0:12:00.1]} 0-1

[Event "Rapid del Mercoledì"]
[Site "Chess.com"]
[Date "2020.06.10"]
[Round "1"]
[White "Mrtre7"]
[Black "mr6701"]
[Result "0-1"]
[WhiteElo "1484"]
[BlackElo "1818"]
[TimeControl "720+3"]
[EndTime "12:16:52 PDT"]
[Termination "mr6701 ha vinto per abbandono"]

1. d4 {[%clk 0:11:49.3]} 1... d5 {[%clk 0:12:01.4]} 2. c4 {[%clk 0:11:49.4]}
2... e6 {[%clk 0:12:03.3]} 3. Nc3 {[%clk 0:11:49.6]} 3... Nf6 {[%clk 0:12:05.2]}
4. cxd5 {[%clk 0:11:51.4]} 4... exd5 {[%clk 0:12:06.6]} 5. Bg5 {[%clk 0:11:53]}
5... Be7 {[%clk 0:12:08.4]} 6. e3 {[%clk 0:11:54.9]} 6... h6 {[%clk 0:12:10.4]}
7. Bh4 {[%clk 0:11:55.9]} 7... O-O {[%clk 0:12:12.3]} 8. Bd3 {[%clk 0:11:53.4]}
8... c5 {[%clk 0:12:12.5]} 9. dxc5 {[%clk 0:11:54.6]} 9... Bxc5 {[%clk
0:12:14.4]} 10. Qc2 {[%clk 0:11:46.4]} 10... d4 {[%clk 0:11:56.7]} 11. exd4
{[%clk 0:11:16]} 11... Re8+ {[%clk 0:11:41.7]} 12. Nge2 {[%clk 0:11:04]} 12...
Qxd4 {[%clk 0:11:31.4]} 13. Bg3 {[%clk 0:10:43.3]} 13... Nc6 {[%clk 0:11:21.8]}
14. O-O-O {[%clk 0:10:40.2]} 14... Nb4 {[%clk 0:11:03.9]} 15. Nxd4 {[%clk
0:09:47.8]} 15... Nxc2 {[%clk 0:11:05.5]} 16. Nxc2 {[%clk 0:09:48.8]} 16... Be6
{[%clk 0:11:06.1]} 17. Rhe1 {[%clk 0:09:30.9]} 17... Rec8 {[%clk 0:11:04.8]} 18.
Kb1 {[%clk 0:09:24.4]} 18... a6 {[%clk 0:11:06.3]} 19. Ne4 {[%clk 0:09:18.7]}
19... Be7 {[%clk 0:11:06.1]} 20. Nxf6+ {[%clk 0:08:40.5]} 20... Bxf6 {[%clk
0:11:09]} 21. Be5 {[%clk 0:08:42.3]} 21... Be7 {[%clk 0:11:09.8]} 22. Nd4 {[%clk
0:08:24.4]} 22... Bd5 {[%clk 0:11:03.7]} 23. Be4 {[%clk 0:08:15.4]} 23... Rc5
{[%clk 0:10:52.1]} 24. Bxd5 {[%clk 0:08:03]} 24... Rxd5 {[%clk 0:10:55]} 25. Nf5
{[%clk 0:07:52.1]} 25... Rxd1+ {[%clk 0:10:56.3]} 26. Rxd1 {[%clk 0:07:51.7]}
26... Bc5 {[%clk 0:10:59.2]} 27. Bxg7 {[%clk 0:07:34.5]} 27... Re8 {[%clk
0:10:49.8]} 28. Bxh6 {[%clk 0:07:24.4]} 28... Bxf2 {[%clk 0:10:45.1]} 29. Rf1
{[%clk 0:07:04.3]} 29... Bc5 {[%clk 0:10:41.6]} 30. Rf3 {[%clk 0:06:25]} 30...
Re1+ {[%clk 0:10:34.7]} 31. Kc2 {[%clk 0:06:24.4]} 31... Re2+ {[%clk 0:10:36.5]}
32. Kb3 {[%clk 0:06:23.4]} 32... Rxg2 {[%clk 0:10:35.4]} 33. Rg3+ {[%clk
0:05:31.1]} 33... Rxg3+ {[%clk 0:10:37.3]} 34. Nxg3 {[%clk 0:05:23.9]} 34... Kh7
{[%clk 0:10:40.2]} 35. Bf4 {[%clk 0:05:22.2]} 35... Kg6 {[%clk 0:10:25.9]} 36.
Kc4 {[%clk 0:05:22]} 36... Bg1 {[%clk 0:10:21.6]} 37. Ne4 {[%clk 0:05:19.5]}
37... Kf5 {[%clk 0:10:10.6]} 38. Be3 {[%clk 0:03:55]} 38... Bxe3 {[%clk
0:10:05.7]} 39. Nd6+ {[%clk 0:03:55.9]} 39... Ke6 {[%clk 0:09:57.6]} 40. Nxb7
{[%clk 0:03:55.1]} 40... f5 {[%clk 0:09:57.5]} 41. Nc5+ {[%clk 0:03:45.6]} 41...
Bxc5 {[%clk 0:09:28.9]} 42. Kxc5 {[%clk 0:03:46.1]} 42... Ke5 {[%clk 0:09:31.2]}
43. h4 {[%clk 0:02:54.3]} 43... f4 {[%clk 0:09:33]} 44. h5 {[%clk 0:02:55.8]}
44... f3 {[%clk 0:09:31.1]} 45. h6 {[%clk 0:02:57.1]} 45... Kf6 {[%clk
0:09:31.5]} 46. Kd4 {[%clk 0:02:43.7]} 46... f2 {[%clk 0:09:33.1]} 47. h7 {[%clk
0:02:42.7]} 47... Kg7 {[%clk 0:09:33.8]} 48. Ke3 {[%clk 0:02:44]} 48... f1=Q
{[%clk 0:09:34.4]} 0-1

[Event "Rapid del Mercoledì"]
[Site "Chess.com"]
[Date "2020.06.10"]
[Round "1"]
[White "Carbon"]
[Black "sirmale49"]
[Result "1-0"]
[WhiteElo "1735"]
[BlackElo "1370"]
[TimeControl "720+3"]
[EndTime "12:18:13 PDT"]
[Termination "Carbon ha vinto per abbandono"]

1. e4 {[%clk 0:12:00.4]} 1... d5 {[%clk 0:11:57.3]} 2. exd5 {[%clk 0:11:54.9]}
2... Qxd5 {[%clk 0:11:57.8]} 3. Nc3 {[%clk 0:11:50.6]} 3... Qd6 {[%clk
0:11:59.1]} 4. g3 {[%clk 0:11:47.9]} 4... c6 {[%clk 0:11:57.6]} 5. d4 {[%clk
0:11:43.1]} 5... Nf6 {[%clk 0:11:50.6]} 6. Bg2 {[%clk 0:11:44.4]} 6... Bf5
{[%clk 0:11:44.6]} 7. Bf4 {[%clk 0:11:42.7]} 7... Qb4 {[%clk 0:11:29.3]} 8. Rb1
{[%clk 0:11:19.1]} 8... e6 {[%clk 0:11:22.2]} 9. a3 {[%clk 0:10:59.1]} 9... Qa5
{[%clk 0:11:21.2]} 10. Ne2 {[%clk 0:10:53.6]} 10... Nbd7 {[%clk 0:11:08.9]} 11.
O-O {[%clk 0:10:53.8]} 11... Be7 {[%clk 0:10:59.9]} 12. h3 {[%clk 0:10:21.6]}
12... h6 {[%clk 0:10:57.7]} 13. g4 {[%clk 0:10:18]} 13... Bg6 {[%clk 0:10:51.4]}
14. Ng3 {[%clk 0:10:15.4]} 14... Nd5 {[%clk 0:09:42.6]} 15. Bd2 {[%clk
0:10:12.5]} 15... Qd8 {[%clk 0:09:38.1]} 16. Nce4 {[%clk 0:10:06.9]} 16... N5f6
{[%clk 0:09:14.8]} 17. Rc1 {[%clk 0:09:41.4]} 17... Nxe4 {[%clk 0:08:56.8]} 18.
Nxe4 {[%clk 0:09:40.7]} 18... Nf6 {[%clk 0:08:53.7]} 19. Nxf6+ {[%clk
0:08:57.5]} 19... Bxf6 {[%clk 0:08:49.2]} 20. c3 {[%clk 0:08:59.1]} 20... Be7
{[%clk 0:08:39.2]} 21. Bf4 {[%clk 0:08:56.9]} 21... Bd6 {[%clk 0:08:33.2]} 22.
Qd2 {[%clk 0:08:47]} 22... f5 {[%clk 0:07:52.4]} 23. Rce1 {[%clk 0:08:20.2]}
23... Bxf4 {[%clk 0:07:40.7]} 24. Qxf4 {[%clk 0:08:18.6]} 24... O-O {[%clk
0:07:36.9]} 25. Qe3 {[%clk 0:07:38.7]} 25... Re8 {[%clk 0:07:22.6]} 26. Qg3
{[%clk 0:06:52.7]} 26... Qg5 {[%clk 0:07:06.8]} 27. f4 {[%clk 0:06:39.1]} 27...
Qf6 {[%clk 0:06:50.4]} 28. Re5 {[%clk 0:06:16]} 28... fxg4 {[%clk 0:06:05.8]}
29. hxg4 {[%clk 0:06:14.9]} 29... Bf7 {[%clk 0:05:53.2]} 30. g5 {[%clk
0:05:43.5]} 30... Qg6 {[%clk 0:05:25.5]} 31. Be4 {[%clk 0:05:09]} 31... Qh5
{[%clk 0:05:16.7]} 32. g6 {[%clk 0:04:59.2]} 32... Qe2 {[%clk 0:04:48.8]} 33.
gxf7+ {[%clk 0:04:47.8]} 33... Kxf7 {[%clk 0:04:40.2]} 34. Bg6+ {[%clk
0:04:32.9]} 1-0

[Event "Rapid del Mercoledì"]
[Site "Chess.com"]
[Date "2020.06.10"]
[Round "2"]
[White "mr6701"]
[Black "crippo"]
[Result "1-0"]
[WhiteElo "1826"]
[BlackElo "1575"]
[TimeControl "720+3"]
[EndTime "12:27:37 PDT"]
[Termination "mr6701 ha vinto per abbandono"]

1. e4 {[%clk 0:12:02.9]} 1... e5 {[%clk 0:12:01.9]} 2. d4 {[%clk 0:12:04.7]}
2... exd4 {[%clk 0:12:00.8]} 3. c3 {[%clk 0:12:07.2]} 3... d3 {[%clk 0:12:02.1]}
4. Bxd3 {[%clk 0:12:09.7]} 4... Nc6 {[%clk 0:12:03.5]} 5. Nf3 {[%clk 0:12:12.6]}
5... d6 {[%clk 0:12:05.6]} 6. O-O {[%clk 0:12:15.3]} 6... Be7 {[%clk 0:12:06.4]}
7. Qc2 {[%clk 0:12:17.6]} 7... Nf6 {[%clk 0:12:07.4]} 8. Rd1 {[%clk 0:12:20.1]}
8... O-O {[%clk 0:12:07.8]} 9. e5 {[%clk 0:12:22.1]} 9... Ng4 {[%clk 0:12:01.8]}
10. Bxh7+ {[%clk 0:12:20]} 10... Kh8 {[%clk 0:12:02.8]} 11. exd6 {[%clk
0:12:13.7]} 11... Bxd6 {[%clk 0:12:01.8]} 12. h3 {[%clk 0:11:52]} 12... Nh6
{[%clk 0:11:47.2]} 13. Bd3 {[%clk 0:11:47.3]} 13... Qf6 {[%clk 0:11:44.2]} 14.
Bxh6 {[%clk 0:11:43.1]} 14... Qxh6 {[%clk 0:11:45.3]} 15. Nbd2 {[%clk
0:11:40.9]} 15... Bxh3 {[%clk 0:11:32.1]} 16. gxh3 {[%clk 0:11:27.2]} 16... Qxh3
{[%clk 0:11:33.1]} 17. Bf5 {[%clk 0:11:19.3]} 17... Qh6 {[%clk 0:11:27]} 18. Qe4
{[%clk 0:11:07.2]} 18... g6 {[%clk 0:11:21.8]} 19. Bd7 {[%clk 0:11:07.5]} 19...
Bf4 {[%clk 0:10:54.2]} 20. Kg2 {[%clk 0:11:00.2]} 20... f5 {[%clk 0:09:25]} 21.
Qe6 {[%clk 0:09:47.1]} 21... Qg7 {[%clk 0:08:58.5]} 22. Rh1+ {[%clk 0:09:42.7]}
22... Bh6 {[%clk 0:08:57.7]} 23. Rxh6+ {[%clk 0:09:19.3]} 23... Qxh6 {[%clk
0:08:57.3]} 24. Rh1 {[%clk 0:09:19.5]} 24... Qxh1+ {[%clk 0:08:59]} 25. Kxh1
{[%clk 0:09:20.7]} 25... Kg7 {[%clk 0:09:01.1]} 26. Bxc6 {[%clk 0:09:07.5]}
26... bxc6 {[%clk 0:09:01.3]} 27. Qxc6 {[%clk 0:09:03.5]} 27... Rac8 {[%clk
0:09:02]} 28. Ne5 {[%clk 0:09:00.9]} 28... Rf6 {[%clk 0:09:02.9]} 29. Qd7+
{[%clk 0:09:02.8]} 1-0

[Event "Rapid del Mercoledì"]
[Site "Chess.com"]
[Date "2020.06.10"]
[Round "2"]
[White "Mrtre7"]
[Black "Carbon"]
[Result "0-1"]
[WhiteElo "1481"]
[BlackElo "1739"]
[TimeControl "720+3"]
[EndTime "12:29:04 PDT"]
[Termination "Carbon ha vinto per abbandono"]

1. d4 {[%clk 0:12:02.9]} 1... Nf6 {[%clk 0:11:59.5]} 2. c4 {[%clk 0:11:59.7]}
2... g6 {[%clk 0:11:58.5]} 3. Nc3 {[%clk 0:11:41.4]} 3... Bg7 {[%clk 0:11:57.1]}
4. e4 {[%clk 0:11:42.3]} 4... d6 {[%clk 0:11:59]} 5. Nf3 {[%clk 0:11:42.9]} 5...
O-O {[%clk 0:12:00]} 6. Be2 {[%clk 0:11:43.8]} 6... e5 {[%clk 0:12:00.5]} 7. O-O
{[%clk 0:11:43.3]} 7... Nc6 {[%clk 0:11:55.5]} 8. d5 {[%clk 0:11:44]} 8... Ne7
{[%clk 0:11:57.4]} 9. b4 {[%clk 0:11:45.2]} 9... Nh5 {[%clk 0:11:49.7]} 10. Re1
{[%clk 0:11:44]} 10... Nf4 {[%clk 0:11:48.3]} 11. Bf1 {[%clk 0:11:45.8]} 11...
f5 {[%clk 0:11:37.6]} 12. Ba3 {[%clk 0:11:39.9]} 12... fxe4 {[%clk 0:11:11.2]}
13. Nxe4 {[%clk 0:11:26.7]} 13... h6 {[%clk 0:10:35.9]} 14. g3 {[%clk
0:10:39.6]} 14... Nh3+ {[%clk 0:10:06.1]} 15. Kh1 {[%clk 0:10:03.7]} 15... Bf5
{[%clk 0:10:05.9]} 16. Bxh3 {[%clk 0:09:27.5]} 16... Bxh3 {[%clk 0:10:03.4]} 17.
c5 {[%clk 0:09:25.6]} 17... Bg4 {[%clk 0:09:54]} 18. Re3 {[%clk 0:09:10.7]}
18... Nf5 {[%clk 0:09:47.8]} 19. Rd3 {[%clk 0:06:35.1]} 19... Nd4 {[%clk
0:09:28.9]} 20. Rxd4 {[%clk 0:06:29.4]} 20... Bxf3+ {[%clk 0:09:18.9]} 0-1

[Event "Rapid del Mercoledì"]
[Site "Chess.com"]
[Date "2020.06.10"]
[Round "2"]
[White "sirmale49"]
[Black "SanSecondoPR"]
[Result "1-0"]
[WhiteElo "1378"]
[BlackElo "1349"]
[TimeControl "720+3"]
[EndTime "12:36:52 PDT"]
[Termination "sirmale49 ha vinto per abbandono"]

1. b3 {[%clk 0:12:01.6]} 1... g6 {[%clk 0:11:58.3]} 2. e3 {[%clk 0:11:57.5]}
2... Bg7 {[%clk 0:11:59.2]} 3. Nc3 {[%clk 0:11:58.7]} 3... Nf6 {[%clk
0:11:58.6]} 4. Bb2 {[%clk 0:12:00.5]} 4... O-O {[%clk 0:11:59]} 5. Nf3 {[%clk
0:12:01.7]} 5... Nc6 {[%clk 0:11:56.2]} 6. d4 {[%clk 0:12:02.9]} 6... d5 {[%clk
0:11:57]} 7. Be2 {[%clk 0:11:51.9]} 7... Re8 {[%clk 0:11:51.1]} 8. O-O {[%clk
0:11:51.6]} 8... Bf5 {[%clk 0:11:31.6]} 9. Bd3 {[%clk 0:11:49.9]} 9... Bxd3
{[%clk 0:11:23.9]} 10. cxd3 {[%clk 0:11:44.8]} 10... a6 {[%clk 0:11:15.3]} 11.
Rc1 {[%clk 0:11:43.2]} 11... e6 {[%clk 0:11:04.5]} 12. Ne5 {[%clk 0:11:39.8]}
12... Bf8 {[%clk 0:10:53.4]} 13. a3 {[%clk 0:11:30]} 13... Bh6 {[%clk
0:10:48.6]} 14. Na4 {[%clk 0:11:20.9]} 14... Ne7 {[%clk 0:10:37.1]} 15. Rc2
{[%clk 0:10:54.7]} 15... Rb8 {[%clk 0:10:31.7]} 16. Ng4 {[%clk 0:10:41.2]} 16...
Bg7 {[%clk 0:10:28.3]} 17. Qc1 {[%clk 0:10:27]} 17... Rc8 {[%clk 0:10:20]} 18.
Nc5 {[%clk 0:10:22.7]} 18... Nc6 {[%clk 0:10:01.6]} 19. f3 {[%clk 0:10:15.8]}
19... Na5 {[%clk 0:09:54.2]} 20. b4 {[%clk 0:10:08.7]} 20... Nc6 {[%clk
0:09:01.3]} 21. Nxb7 {[%clk 0:10:04.7]} 21... Qe7 {[%clk 0:08:50.6]} 22. Rxc6
{[%clk 0:09:59.1]} 22... h5 {[%clk 0:08:35.2]} 23. Ne5 {[%clk 0:09:55.6]} 23...
Nh7 {[%clk 0:08:20.1]} 24. f4 {[%clk 0:09:40.2]} 24... Qh4 {[%clk 0:08:08.2]}
25. Rf3 {[%clk 0:09:11.7]} 25... Bxe5 {[%clk 0:07:40]} 26. fxe5 {[%clk
0:08:58.5]} 26... f5 {[%clk 0:07:33.8]} 27. Rf4 {[%clk 0:08:39.6]} 27... Qe7
{[%clk 0:07:24]} 28. h4 {[%clk 0:08:32.3]} 28... g5 {[%clk 0:07:15.1]} 29. hxg5
{[%clk 0:08:22.6]} 29... Nxg5 {[%clk 0:07:05.6]} 30. Nc5 {[%clk 0:08:19.1]}
30... Qg7 {[%clk 0:06:58.5]} 31. Kh2 {[%clk 0:08:00.2]} 31... Kf7 {[%clk
0:06:50.4]} 32. Nd7 {[%clk 0:07:52.1]} 32... Rh8 {[%clk 0:06:35.2]} 33. Nf6
{[%clk 0:07:48.1]} 33... h4 {[%clk 0:06:20.6]} 34. Rxc7+ {[%clk 0:07:46.9]}
34... Rxc7 {[%clk 0:06:14.1]} 35. Qxc7+ {[%clk 0:07:46.1]} 35... Kg6 {[%clk
0:06:10.9]} 36. Qxg7+ {[%clk 0:07:45.6]} 36... Kxg7 {[%clk 0:06:09.8]} 37. e4
{[%clk 0:07:13.1]} 37... dxe4 {[%clk 0:06:01.3]} 38. dxe4 {[%clk 0:07:10.5]}
38... fxe4 {[%clk 0:05:54.4]} 39. Nxe4 {[%clk 0:07:11.5]} 39... Kh6 {[%clk
0:05:30.9]} 40. Nf6 {[%clk 0:06:53.6]} 40... Rc8 {[%clk 0:04:55.9]} 41. d5
{[%clk 0:06:29]} 41... Rc2 {[%clk 0:04:45.3]} 42. Bd4 {[%clk 0:06:26]} 42... h3
{[%clk 0:04:36.1]} 43. Rf2 {[%clk 0:06:19.1]} 43... Nf3+ {[%clk 0:04:26.6]} 44.
gxf3 {[%clk 0:06:12.3]} 1-0

[Event "Rapid del Mercoledì"]
[Site "Chess.com"]
[Date "2020.06.10"]
[Round "3"]
[White "crippo"]
[Black "sirmale49"]
[Result "0-1"]
[WhiteElo "1562"]
[BlackElo "1390"]
[TimeControl "720+3"]
[EndTime "12:43:41 PDT"]
[Termination "sirmale49 ha vinto per scaccomatto"]

1. e4 {[%clk 0:12:02.9]} 1... d5 {[%clk 0:11:59.6]} 2. d4 {[%clk 0:12:05.3]}
2... dxe4 {[%clk 0:12:00.2]} 3. f3 {[%clk 0:12:06.9]} 3... exf3 {[%clk
0:11:59.6]} 4. g3 {[%clk 0:12:08.2]} 4... Bg4 {[%clk 0:11:58.2]} 5. Qxf3 {[%clk
0:12:03.9]} 5... Bxf3 {[%clk 0:11:59]} 6. d5 {[%clk 0:12:05.1]} 6... Qxd5 {[%clk
0:11:52.9]} 7. Bh3 {[%clk 0:12:06.8]} 7... Qd1+ {[%clk 0:11:51.5]} 8. Kf2 {[%clk
0:12:07.3]} 8... Bg4 {[%clk 0:11:44.1]} 9. Nf3 {[%clk 0:12:08.5]} 9... Qxh1
{[%clk 0:11:42.1]} 10. Ne5 {[%clk 0:12:08.6]} 10... Bxh3 {[%clk 0:11:27.5]} 11.
Nc6 {[%clk 0:11:58.1]} 11... Nxc6 {[%clk 0:11:27.8]} 12. Bf4 {[%clk 0:11:56.4]}
12... Qg2+ {[%clk 0:11:23.5]} 13. Ke1 {[%clk 0:11:57.9]} 13... Nd4 {[%clk
0:11:21.6]} 14. Nc3 {[%clk 0:11:59.5]} 14... Nxc2+ {[%clk 0:11:20.7]} 15. Kd1
{[%clk 0:12:00.6]} 15... Nxa1 {[%clk 0:11:21.1]} 16. Kc1 {[%clk 0:12:01.7]}
16... Qxh2 {[%clk 0:11:20.4]} 17. Kb1 {[%clk 0:12:03.6]} 17... Qg1+ {[%clk
0:11:17.8]} 18. Nd1 {[%clk 0:12:01.6]} 18... Qxd1+ {[%clk 0:11:17.7]} 19. Bc1
{[%clk 0:12:03.5]} 19... Qxc1+ {[%clk 0:11:19.3]} 20. Kxc1 {[%clk 0:12:00.2]}
20... Nf6 {[%clk 0:11:20]} 21. g4 {[%clk 0:11:58.5]} 21... Ne4 {[%clk
0:11:13.8]} 22. Kb1 {[%clk 0:11:59.4]} 22... Nd2+ {[%clk 0:11:14.9]} 23. Kc1
{[%clk 0:11:59.2]} 23... O-O-O {[%clk 0:11:07.9]} 24. g5 {[%clk 0:11:59.8]}
24... f6 {[%clk 0:11:05]} 25. g6 {[%clk 0:12:01.1]} 25... hxg6 {[%clk 0:11:06]}
26. a4 {[%clk 0:12:02.6]} 26... Nc2 {[%clk 0:11:05.8]} 27. b4 {[%clk 0:12:04.3]}
27... a5 {[%clk 0:11:04.9]} 28. b5 {[%clk 0:12:06.2]} 28... b6 {[%clk
0:11:04.7]} 29. Kb2 {[%clk 0:12:05.6]} 29... e5 {[%clk 0:11:01.1]} 30. Kc3
{[%clk 0:12:07]} 30... Bb4+ {[%clk 0:10:58]} 31. Kb2 {[%clk 0:12:09]} 31... Bg4
{[%clk 0:10:52.9]} 32. Kc1 {[%clk 0:12:10.9]} 32... Rh1+ {[%clk 0:10:48.8]} 33.
Kb2 {[%clk 0:12:12.7]} 33... Rb1+ {[%clk 0:10:47.4]} 34. Ka2 {[%clk 0:12:14.5]}
34... Rb2+ {[%clk 0:10:36.9]} 35. Kxb2 {[%clk 0:12:07.4]} 35... Nc4+ {[%clk
0:10:30.3]} 36. Ka2 {[%clk 0:12:07.3]} 36... Rd2 {[%clk 0:10:28.1]} 37. Kb1
{[%clk 0:12:07.4]} 37... N2a3+ {[%clk 0:10:27.8]} 38. Ka1 {[%clk 0:12:08.5]}
38... Ra2+ {[%clk 0:10:23.1]} 39. Kxa2 {[%clk 0:12:05.6]} 39... Nb2 {[%clk
0:10:18.4]} 40. Ka1 {[%clk 0:12:07.2]} 40... Nxa4 {[%clk 0:10:18.1]} 41. Ka2
{[%clk 0:12:08.9]} 41... Be6+ {[%clk 0:10:19]} 42. Ka1 {[%clk 0:12:09.5]} 42...
Bc3# {[%clk 0:10:16.4]} 0-1

[Event "Rapid del Mercoledì"]
[Site "Chess.com"]
[Date "2020.06.10"]
[Round "3"]
[White "Carbon"]
[Black "mr6701"]
[Result "0-1"]
[WhiteElo "1732"]
[BlackElo "1840"]
[TimeControl "720+3"]
[EndTime "12:49:44 PDT"]
[Termination "mr6701 ha vinto per abbandono"]

1. e4 {[%clk 0:12:02.5]} 1... d5 {[%clk 0:12:01.4]} 2. exd5 {[%clk 0:12:02.9]}
2... Nf6 {[%clk 0:12:03.4]} 3. d4 {[%clk 0:12:02.9]} 3... Nxd5 {[%clk
0:12:05.2]} 4. c4 {[%clk 0:12:03.8]} 4... Nf6 {[%clk 0:12:05.4]} 5. Nc3 {[%clk
0:12:01.3]} 5... e5 {[%clk 0:12:05.5]} 6. Qe2 {[%clk 0:11:16.8]} 6... Qxd4
{[%clk 0:10:34.8]} 7. Nf3 {[%clk 0:11:15.1]} 7... Qd8 {[%clk 0:10:16.8]} 8. Nxe5
{[%clk 0:10:59.7]} 8... Be7 {[%clk 0:10:18.3]} 9. Bg5 {[%clk 0:09:47.8]} 9...
O-O {[%clk 0:10:18.3]} 10. Rd1 {[%clk 0:09:45.5]} 10... Nbd7 {[%clk 0:09:53.8]}
11. g3 {[%clk 0:06:37.5]} 11... Re8 {[%clk 0:09:54.6]} 12. Bh3 {[%clk
0:06:29.3]} 12... Bd6 {[%clk 0:09:47.3]} 13. f4 {[%clk 0:05:23.5]} 13... Nxe5
{[%clk 0:09:34.9]} 14. fxe5 {[%clk 0:05:09.7]} 14... Bxh3 {[%clk 0:09:21.8]} 15.
Ne4 {[%clk 0:04:21.8]} 15... Rxe5 {[%clk 0:09:03.2]} 0-1

[Event "Rapid del Mercoledì"]
[Site "Chess.com"]
[Date "2020.06.10"]
[Round "3"]
[White "SanSecondoPR"]
[Black "Mrtre7"]
[Result "1-0"]
[WhiteElo "1360"]
[BlackElo "1470"]
[TimeControl "720+3"]
[EndTime "12:50:25 PDT"]
[Termination "SanSecondoPR ha vinto per scaccomatto"]

1. e4 {[%clk 0:12:02.9]} 1... c5 {[%clk 0:11:58.9]} 2. d4 {[%clk 0:12:02.3]}
2... cxd4 {[%clk 0:12:00.1]} 3. Nf3 {[%clk 0:12:02.9]} 3... g6 {[%clk
0:12:00.5]} 4. Nxd4 {[%clk 0:12:03.3]} 4... Nc6 {[%clk 0:12:01.9]} 5. Nb3 {[%clk
0:12:04.2]} 5... Bg7 {[%clk 0:12:03.7]} 6. Nc3 {[%clk 0:12:01]} 6... Nf6 {[%clk
0:12:05]} 7. Bg5 {[%clk 0:12:01]} 7... O-O {[%clk 0:12:06]} 8. Qd2 {[%clk
0:12:01.1]} 8... Re8 {[%clk 0:11:19.8]} 9. O-O-O {[%clk 0:12:00.3]} 9... d6
{[%clk 0:11:07.3]} 10. f3 {[%clk 0:11:58.3]} 10... Nd7 {[%clk 0:11:01.4]} 11.
Kb1 {[%clk 0:11:31.8]} 11... Nb6 {[%clk 0:11:02.4]} 12. Bb5 {[%clk 0:11:23.1]}
12... Be6 {[%clk 0:11:00.1]} 13. Nd5 {[%clk 0:11:09.4]} 13... Nxd5 {[%clk
0:10:54.2]} 14. exd5 {[%clk 0:11:06.8]} 14... Bxd5 {[%clk 0:10:09.8]} 15. Qxd5
{[%clk 0:11:05.8]} 15... Nb4 {[%clk 0:10:07]} 16. Qc4 {[%clk 0:10:39]} 16... a5
{[%clk 0:09:32.5]} 17. Bxe8 {[%clk 0:10:35.1]} 17... Rc8 {[%clk 0:09:20.4]} 18.
Qxf7+ {[%clk 0:10:25.4]} 18... Kh8 {[%clk 0:09:19.7]} 19. Ba4 {[%clk 0:09:19.4]}
19... Rxc2 {[%clk 0:08:55]} 20. Nd4 {[%clk 0:08:58.9]} 20... Rxb2+ {[%clk
0:06:59.5]} 21. Kxb2 {[%clk 0:08:51.5]} 21... Nd3+ {[%clk 0:07:00.1]} 22. Rxd3
{[%clk 0:08:43.9]} 22... Qb6+ {[%clk 0:07:01.6]} 23. Bb3 {[%clk 0:07:56.6]}
23... Bxd4+ {[%clk 0:06:50.3]} 24. Kb1 {[%clk 0:07:46.1]} 24... d5 {[%clk
0:05:52.3]} 25. Qf8# {[%clk 0:07:39.3]} 1-0